bitfinex-derivatives/quotes_ETHF0:USTF0_20250103
["timestamp","ask_amount","ask_price","bid_price","bid_amount"]
[1735915656879,4.5098,3527.3,3526.4,3.2078]
[1735915657184,0.28375,3526.9,3526.4,3.2078]
[1735915657589,4.5098,3527.3,3526.4,3.2078]
[1735915657773,4.5098,3527.3,3526.0,3.2078]
[1735915658077,3.2078,3526.5,3525.5,3.2078]
[1735915658280,1.302,3526.4,3525.5,3.2078]
[1735915658474,0.28379,3526.3,3525.7,0.28383]
[1735915658687,42.102,3526.4,3524.7,2.01179]
[1735915658688,1.302,3526.4,3526.0,0.28381]
[1735915658878,1.302,3526.4,3525.9,3.2078]
[1735915659178,1.58579,3526.4,3525.9,3.2078]
[1735915659374,1.302,3526.4,3525.9,3.2078]
[1735915659576,0.2838,3526.2,3525.6,0.28384]
[1735915659779,1.58579,3526.4,3525.8,0.28383]
[1735915659978,1.302,3526.4,3525.9,0.28382]
[1735915660278,40.8,3527.0,3525.9,3.2078]
[1735915660479,40.8,3527.0,3524.8,2.79643922]
[1735915660480,0.28375,3526.9,3526.3,3.49159]
[1735915660984,44.0078,3527.5,3526.3,3.2078]
[1735915661280,0.28372,3527.3,3526.7,3.49155]
[1735915661474,1.302,3527.4,3526.7,3.2078]
[1735915661972,0.28374,3527.0,3526.3,3.49159]
[1735915662176,0.28375,3526.8,3526.3,3.2078]
[1735915662373,0.28375,3526.8,3526.3,3.49159]
[1735915662579,0.28376,3526.7,3526.3,3.2078]
[1735915662885,6.00423922,3527.1,3525.9,3.2078]
[1735915663083,6.95221264,3527.3,3526.9,0.28374]
[1735915663286,3.2078,3527.5,3526.2,0.7095]
[1735915663287,3.2078,3527.5,3526.7,3.2078]
[1735915663589,6.14786758,3529.5,3525.7,1.302]
[1735915663590,3.2078,3528.3,3527.1,3.2078]
[1735915663780,3.2078,3528.3,3527.5,3.2078]
[1735915664086,0.28364,3528.2,3527.6,0.28368]
[1735915664379,3.49143,3528.3,3527.7,0.28368]
[1735915664589,0.28363,3528.3,3527.9,3.2078]
[1735915664883,0.28364,3528.2,3527.7,0.28368]
[1735915665087,1.302,3528.6,3527.5,3.2078]
[1735915665286,3.2078,3528.4,3527.5,3.2078]
[1735915665578,3.2078,3527.8,3526.9,3.2078]
[1735915665789,0.28368,3527.7,3527.2,0.28372]
[1735915666387,0.28366,3527.9,3527.4,3.4915]
[1735915666685,3.2078,3528.2,3527.4,3.2078]
[1735915666987,0.28368,3527.7,3527.4,3.2078]
[1735915667379,3.2078,3528.2,3527.4,3.2078]
[1735915667683,0.70912,3528.1,3527.0,3.2078]
[1735915667881,0.70912,3528.1,3527.1,0.28373]
[1735915668077,2.79643922,3528.1,3527.0,3.2078]
[1735915668278,0.28371,3527.3,3527.0,3.2078]
[1735915668478,0.2837,3527.5,3527.0,3.49153]
[1735915668680,40.8,3528.0,3527.0,3.2078]
[1735915668877,41.08365,3528.0,3527.5,0.28369]
[1735915669082,0.28367,3527.9,3527.4,3.4915]
[1735915669483,40.8,3528.4,3527.4,3.2078]
[1735915669685,0.70908,3528.3,3527.4,3.2078]
[1735915669878,0.28368,3527.7,3527.4,3.2078]
[1735915670079,0.9928,3528.0,3527.0,0.28373]
[1735915670282,0.28367,3527.9,3527.4,0.2837]
[1735915670477,0.28368,3527.7,3527.3,3.49151]
[1735915670691,0.28369,3527.6,3527.3,3.2078]
[1735915670989,0.70914,3528.0,3527.3,3.2078]
[1735915671284,0.28372,3527.2,3526.9,3.2078]
[1735915671486,0.28373,3527.0,3526.9,3.2078]
[1735915671889,0.28381,3526.1,3526.0,3.2078]
[1735915672091,0.28385,3525.6,3525.5,3.2078]
[1735915672383,0.28385,3525.6,3524.8,4.31182122]
[1735915672384,2.79643922,3525.6,3524.8,4.31182122]
[1735915672584,0.28396,3524.3,3524.1,3.2078]
[1735915672782,0.70977,3524.9,3524.1,3.2078]
[1735915672987,0.28395,3524.4,3524.1,3.2078]
[1735915673288,0.28396,3524.2,3524.1,3.2078]
[1735915673986,0.28395,3524.4,3524.1,3.2078]
[1735915674292,0.28391,3524.9,3524.5,0.28394]
[1735915674485,7.30623922,3525.6,3524.5,3.49173]
[1735915674694,7.30623922,3525.6,3524.5,3.2078]
[1735915674989,0.28389,3525.1,3524.6,0.28393]
[1735915675288,7.30623922,3525.6,3524.5,3.2078]
[1735915675583,0.28388,3525.3,3524.5,3.2078]
[1735915675783,7.30623922,3525.6,3524.5,3.2078]
[1735915675988,3.2078,3524.8,3524.0,3.2078]
[1735915676187,0.28395,3524.3,3524.0,3.2078]
[1735915677289,1.302,3524.7,3524.0,3.2078]
[1735915677588,0.28397,3524.1,3524.0,3.2078]
[1735915677792,0.28396,3524.2,3524.0,3.2078]
[1735915678094,1.302,3524.7,3524.0,3.2078]
[1735915678692,1.302,3524.7,3523.6,3.2078]
[1735915678891,0.28397,3524.2,3523.7,0.284]
[1735915679192,0.28398,3523.9,3523.6,3.2078]
[1735915679394,0.284,3523.8,3523.6,3.2078]
[1735915679594,3.2078,3524.4,3523.6,3.2078]
[1735915679595,0.28395,3524.3,3523.6,3.2078]
[1735915679783,3.2078,3524.4,3523.6,3.2078]
[1735915680291,1.302,3524.7,3523.8,0.28399]
[1735915680493,0.28397,3524.2,3524.0,3.2078]
[1735915680696,0.28393,3524.6,3524.0,3.2078]
[1735915680887,1.302,3524.7,3524.0,3.2078]
[1735915681385,0.28395,3524.4,3523.8,0.28398]
[1735915681696,3.49171,3524.9,3524.3,0.28395]
[1735915681895,3.2078,3524.9,3524.0,3.2078]
[1735915682099,3.2078,3524.9,3524.0,3.49177]
[1735915682390,0.28391,3524.8,3524.0,3.2078]
[1735915682691,0.28396,3524.3,3524.0,3.2078]
[1735915682897,3.2078,3524.9,3524.0,3.2078]
[1735915683398,0.28392,3524.8,3524.2,0.28395]
[1735915683597,3.2078,3524.9,3524.0,3.2078]
[1735915683990,0.28392,3524.8,3524.2,0.28396]
[1735915684186,3.2078,3524.9,3524.0,3.2078]
[1735915684497,0.28392,3524.8,3524.2,0.28396]
[1735915684694,0.28392,3524.7,3524.1,0.28396]
[1735915685001,3.2078,3525.5,3524.6,3.2078]
[1735915685298,0.28387,3525.4,3525.1,3.2078]
[1735915685495,1.293,3525.8,3524.7,0.28392]
[1735915685496,0.28388,3525.3,3524.7,0.28392]
[1735915685698,3.2078,3525.5,3524.2,3.2078]
[1735915685997,2.79643922,3525.6,3524.2,3.2078]
[1735915686385,0.28387,3525.4,3524.8,0.28391]
[1735915686593,0.28387,3525.4,3524.1,0.70992]
[1735915686594,0.28386,3525.5,3525.0,3.2078]
[1735915686996,0.28387,3525.4,3525.0,3.2078]
[1735915687196,3.2078,3525.9,3525.0,3.2078]
[1735915687498,0.28384,3525.8,3525.3,0.28387]
[1735915687695,3.2078,3525.9,3525.4,3.2078]
[1735915687994,1.293,3526.8,3525.8,3.2078]
[1735915688395,0.28376,3526.7,3526.3,0.28379]
[1735915688691,1.57676,3526.8,3526.3,3.49159]
[1735915688892,40.8,3527.0,3526.7,3.2078]
[1735915689091,2.79643922,3527.6,3526.7,3.2078]
[1735915689491,0.28372,3527.2,3526.7,3.49155]
[1735915689690,3.2078,3527.4,3526.7,3.2078]
[1735915689896,0.28375,3526.9,3526.4,0.28378]
[1735915690093,0.28371,3527.3,3526.8,0.28375]
[1735915690397,42.093,3527.5,3527.1,0.28372]
[1735915690593,42.3767,3527.5,3526.9,3.2078]
[1735915690791,42.093,3527.5,3527.1,0.28373]
[1735915691093,42.093,3527.5,3526.9,3.2078]
[1735915691297,0.28372,3527.2,3526.9,3.2078]
[1735915691489,0.28372,3527.2,3526.7,3.49155]
[1735915691692,42.093,3527.5,3526.7,3.2078]
[1735915691891,0.28373,3527.1,3526.7,3.2078]
[1735915692092,42.093,3527.5,3526.7,3.2078]
[1735915692293,0.28375,3526.8,3526.4,0.28378]
[1735915692604,45.3008,3527.5,3526.2,3.2078]
[1735915692900,0.7093,3527.3,3526.2,3.2078]
[1735915693095,0.28376,3526.7,3526.3,0.28379]
[1735915693294,3.2078,3527.1,3526.2,3.2078]
[1735915693593,0.28379,3526.3,3526.2,3.2078]
[1735915693792,0.70934,3527.0,3525.4,3.2078]
[1735915693793,2.79643922,3526.6,3525.4,3.2078]
[1735915693987,0.28377,3526.5,3525.8,3.49162]
[1735915694189,0.2838,3526.3,3525.9,0.28382]
[1735915694498,40.8,3526.2,3525.4,0.28386]
[1735915694797,0.28382,3526.0,3525.8,3.2078]
[1735915694999,0.28382,3526.0,3525.6,0.28385]
[1735915695000,0.28385,3525.7,3525.3,3.49167]
[1735915695301,0.70953,3526.1,3525.3,3.2078]
[1735915695499,0.70953,3526.1,3524.9,3.2078]
[1735915695500,3.2078,3525.8,3524.9,3.2078]
[1735915695801,0.2839,3525.0,3524.9,3.2078]
[1735915695994,3.2078,3525.0,3524.1,4.31758305]
[1735915696194,0.28391,3524.8,3524.2,3.2078]
[1735915696397,0.28393,3524.6,3524.2,0.28396]
[1735915696593,0.28393,3524.6,3523.8,11.84296611]
[1735915696594,3.2078,3524.6,3523.8,3.2078]
[1735915697103,9.91055912,3524.5,3523.8,3.2078]
[1735915697304,0.28402,3523.5,3523.4,4.31758305]
[1735915697504,0.28402,3523.6,3523.4,4.31758305]
[1735915697696,1.293,3524.0,3523.4,4.31758305]
[1735915698306,0.28398,3523.9,3523.3,0.28403]
[1735915698507,1.293,3524.0,3523.2,3.2078]
[1735915698702,1.293,3524.0,3523.2,3.49184]
[1735915698998,4.5008,3524.1,3523.2,3.2078]
[1735915699307,0.28398,3524.0,3523.5,0.28401]
[1735915699908,0.28398,3524.0,3523.2,3.2078]
[1735915700106,0.28399,3523.9,3523.4,0.28402]
[1735915700308,4.5008,3524.1,3523.2,3.2078]
[1735915700700,0.28398,3524.0,3523.6,0.28401]
[1735915700909,4.5008,3524.1,3523.2,3.2078]
[1735915701201,0.10438069,3556.3,3522.5,4.79966922]
[1735915701202,1.293,3524.7,3523.8,3.2078]
[1735915701409,0.28396,3524.2,3523.8,3.49179]
[1735915701703,3.91761,3524.7,3523.8,3.2078]
[1735915701909,0.28396,3524.3,3523.9,0.28398]
[1735915702099,0.28397,3524.2,3523.8,3.49179]
[1735915702304,3.2078,3524.3,3523.8,3.2078]
[1735915702505,3.2078,3524.3,3523.4,3.2078]
[1735915702702,0.28402,3523.5,3523.4,3.2078]
[1735915704601,40.8,3523.8,3522.8,3.2078]
[1735915704797,0.28409,3522.6,3522.2,3.2078]
[1735915705100,3.2078,3523.0,3521.7,0.28416]
[1735915705101,0.28412,3522.3,3521.7,0.28416]
[1735915705303,0.28412,3522.3,3522.0,3.2078]
[1735915705506,3.2078,3522.6,3521.6,3.2078]
[1735915705704,0.28416,3521.7,3521.6,3.2078]
[1735915705903,1.293,3522.0,3521.2,4.31758305]
[1735915706104,0.28419,3521.3,3521.2,4.31758305]
[1735915706307,1.293,3522.0,3521.2,4.31758305]
[1735915706308,0.28418,3521.5,3521.2,4.31758305]
[1735915706508,3.2078,3521.8,3521.2,4.31758305]
[1735915706708,0.28415,3521.9,3521.5,3.2078]
[1735915706909,1.293,3522.0,3521.5,3.2078]
[1735915707109,0.28415,3521.9,3521.5,3.2078]
[1735915707304,1.293,3522.0,3521.5,3.2078]
[1735915707505,40.8,3522.1,3521.1,3.2078]
[1735915707707,1.293,3522.5,3521.6,0.28417]
[1735915708008,1.293,3523.1,3522.0,3.2078]
[1735915708218,0.28408,3522.8,3522.4,3.2078]
[1735915708414,1.293,3523.1,3522.4,3.2078]
[1735915708709,0.28409,3522.7,3522.4,3.2078]
[1735915708910,0.28408,3522.8,3522.4,3.2078]
[1735915709101,3.2078,3522.5,3521.6,3.2078]
[1735915709306,3.2078,3521.8,3520.7,3.2078]
[1735915709502,0.28414,3522.0,3521.5,0.28418]
[1735915709704,3.2078,3522.2,3521.5,3.2078]
[1735915710010,1.293,3522.4,3522.0,0.28414]
[1735915710206,1.293,3522.5,3521.9,3.2078]
[1735915710415,1.293,3522.5,3522.2,0.28412]
[1735915710602,0.28406,3523.0,3521.9,3.2078]
[1735915710809,3.2078,3523.1,3522.3,3.2078]
[1735915711012,1.293,3523.2,3522.9,0.28406]
[1735915711208,3.2078,3523.5,3523.1,0.28405]
[1735915711209,0.28402,3523.5,3523.1,0.28405]
[1735915711408,1.294,3523.6,3522.7,3.2078]
[1735915711605,0.28402,3523.5,3523.1,0.28405]
[1735915711801,1.294,3523.6,3523.3,0.28403]
[1735915712116,1.294,3523.6,3522.7,3.91801]
[1735915712117,3.2078,3523.5,3522.7,3.2078]
[1735915712411,0.28406,3523.0,3522.7,3.2078]
[1735915712608,0.28407,3522.9,3522.7,3.2078]
[1735915712802,3.2078,3523.5,3522.7,3.2078]
[1735915713214,0.28407,3522.8,3522.7,3.2078]
[1735915713518,3.2078,3523.1,3522.1,3.2078]
[1735915713811,0.28412,3522.3,3522.1,3.2078]
[1735915714009,3.2078,3522.7,3521.5,3.2078]
[1735915714207,0.28409,3522.6,3521.9,3.49194]
[1735915714409,3.2078,3522.7,3521.9,3.2078]
[1735915714615,3.2078,3522.7,3521.9,3.49194]
[1735915714912,3.2078,3522.7,3521.9,3.2078]
[1735915715408,0.28413,3522.1,3521.9,3.2078]
[1735915715613,6.00423922,3522.7,3521.2,3.2078]
[1735915715813,3.2078,3522.3,3521.2,3.2078]
[1735915716017,0.28414,3522.0,3521.6,3.2078]
[1735915716209,3.2078,3522.3,3521.6,3.2078]
[1735915716210,1.313,3522.2,3521.6,3.2078]
[1735915716613,1.313,3522.2,3521.7,0.28416]
[1735915716814,0.28415,3522.0,3521.6,3.49197]
[1735915717014,0.28413,3522.1,3521.7,0.28416]
[1735915717314,0.28413,3522.1,3521.6,3.2078]
[1735915717508,0.28414,3522.0,3521.7,0.28416]
[1735915717706,3.2078,3522.9,3521.6,3.2078]
[1735915717707,1.314,3522.5,3521.6,3.2078]
[1735915717914,0.28413,3522.1,3521.8,0.28415]
[1735915718411,3.2078,3522.9,3521.6,3.2078]
[1735915718615,3.2078,3522.9,3522.0,3.2078]
[1735915719315,0.2841,3522.5,3522.2,0.28412]
[1735915719515,0.28412,3522.3,3522.0,3.49193]
[1735915719710,3.2078,3522.9,3522.0,3.2078]
[1735915719911,0.28412,3522.2,3522.0,3.2078]
[1735915720111,0.28412,3522.3,3522.0,3.49193]
[1735915720412,44.0078,3522.9,3522.0,3.2078]
[1735915720611,0.28413,3522.1,3522.0,3.2078]
[1735915720811,3.91807,3522.5,3522.0,3.2078]
[1735915720812,3.2078,3522.5,3522.0,3.2078]
[1735915721210,44.0078,3522.9,3522.0,3.2078]
[1735915721417,0.28408,3522.7,3522.3,0.28411]
[1735915721618,1.59808,3522.8,3522.5,0.2841]
[1735915721807,1.314,3523.2,3522.4,3.2078]
[1735915722013,3.2078,3523.3,3523.0,0.28405]
[1735915722213,3.2078,3523.3,3522.4,3.2078]
[1735915722514,3.2078,3523.3,3523.2,0.28404]
[1735915722708,0.28401,3523.6,3522.5,0.71023]
[1735915722709,40.8,3523.9,3522.8,3.2078]
[1735915722918,0.28404,3523.3,3522.8,3.2078]
[1735915723124,0.28402,3523.5,3523.1,0.28404]
[1735915723316,0.28402,3523.5,3523.2,3.2078]
[1735915723619,0.28403,3523.4,3523.0,0.28405]
[1735915723826,0.28403,3523.3,3523.0,0.28405]
[1735915724120,0.28404,3523.3,3522.9,0.28406]
[1735915724314,0.28404,3523.3,3523.0,0.28406]
[1735915724815,0.28403,3523.4,3523.1,3.2078]
[1735915725022,0.28403,3523.4,3523.1,3.49185]
[1735915725216,40.8,3523.9,3523.1,3.2078]
[1735915725420,0.28402,3523.5,3523.1,3.49185]
[1735915725720,40.8,3523.9,3523.1,3.49185]
[1735915725917,0.28401,3523.6,3523.2,0.28403]
[1735915726117,40.8,3523.9,3523.6,0.28401]
[1735915726118,41.08398,3523.9,3523.6,0.28401]
[1735915726327,40.8,3523.9,3523.2,0.28404]
[1735915726622,3.91773,3524.2,3523.3,0.28403]
[1735915726823,0.70993,3524.1,3523.2,0.28404]
[1735915727010,0.28402,3523.6,3522.9,3.2078]
[1735915727315,0.28402,3523.5,3522.9,3.2078]
[1735915727709,0.28401,3523.6,3522.9,3.2078]
[1735915728024,0.28403,3523.4,3522.9,3.2078]
[1735915728320,40.8,3524.0,3522.9,3.2078]
[1735915729021,3.91779,3523.8,3522.9,3.2078]
[1735915729214,0.28406,3523.0,3522.9,3.2078]
[1735915729524,3.2078,3523.7,3522.9,3.2078]
[1735915729719,44.0078,3524.0,3522.9,3.2078]
[1735915729925,0.28403,3523.4,3523.3,0.28403]
[1735915730519,0.284,3523.7,3523.6,0.28401]
[1735915730720,0.284,3523.7,3523.3,3.2078]
[1735915730918,1.313,3524.3,3523.7,0.284]
[1735915731121,0.28399,3523.9,3523.8,0.28399]
[1735915731317,1.313,3524.3,3523.7,0.284]
[1735915731618,0.28393,3524.6,3524.2,3.2078]
[1735915731920,1.313,3525.4,3524.3,0.70989]
[1735915732219,0.28387,3525.3,3525.0,0.28389]
[1735915732520,2.79643922,3525.7,3524.8,0.28391]
[1735915732521,0.28389,3525.1,3524.8,0.28391]
[1735915732724,40.8,3525.6,3524.5,3.2078]
[1735915732725,3.2078,3525.3,3524.5,3.2078]
[1735915732926,40.8,3525.6,3524.5,3.2078]
[1735915732927,0.2839,3525.0,3524.5,3.2078]
[1735915733230,0.2839,3525.0,3524.7,0.28392]
[1735915733421,41.50964,3525.6,3524.5,3.2078]
[1735915733422,2.79643922,3525.7,3524.5,3.2078]
[1735915733630,2.79643922,3525.7,3523.5,1.4201]
[1735915733631,3.2078,3525.8,3525.2,0.28388]
[1735915733815,3.2078,3525.8,3524.9,3.2078]
[1735915734022,40.8,3525.7,3524.9,3.2078]
[1735915734224,0.28385,3525.6,3525.2,0.28388]
[1735915734530,3.2078,3525.8,3524.9,3.2078]
[1735915735130,0.28385,3525.6,3525.1,0.28388]
[1735915735323,3.2078,3525.8,3524.9,3.2078]
[1735915735829,0.28387,3525.4,3525.0,0.28389]
[1735915736224,3.91739,3525.8,3524.8,0.28391]
[1735915736427,0.70961,3525.7,3524.5,3.2078]
[1735915736626,0.28388,3525.2,3524.8,0.28391]
[1735915736935,0.28389,3525.1,3524.7,0.28391]
[1735915737234,0.28387,3525.3,3525.0,0.28389]
[1735915737432,3.2078,3525.9,3524.9,3.2078]
[1735915737634,0.28388,3525.3,3525.0,0.28389]
[1735915738237,3.2078,3525.9,3524.9,3.2078]
[1735915738435,13.81465922,3526.7,3525.7,3.2078]
[1735915738624,2.02242,3526.6,3525.7,3.2078]
[1735915738825,3.2078,3526.3,3525.5,0.28385]
[1735915739330,0.28382,3526.0,3525.6,0.28384]
[1735915739537,0.28382,3526.0,3525.2,3.2078]
[1735915739727,0.28382,3526.0,3525.5,0.28385]
[1735915739927,0.28382,3526.0,3525.6,0.28385]
[1735915740127,0.28382,3526.0,3525.2,3.2078]
[1735915740426,0.28382,3526.0,3525.6,0.28385]
[1735915740623,0.28382,3526.0,3525.2,3.2078]
[1735915740827,0.28382,3526.0,3525.5,0.28385]
[1735915741028,0.28382,3526.0,3525.6,0.28385]
[1735915741230,44.0078,3526.3,3525.8,0.28383]
[1735915741231,0.28381,3526.2,3525.8,0.28383]
[1735915741427,10.3088,3526.7,3525.6,3.2078]
[1735915741740,0.28379,3526.4,3525.9,0.28382]
[1735915741939,3.2078,3526.7,3525.3,0.70968]
[1735915741940,6.52111257,3527.5,3526.0,3.2078]
[1735915742137,6.52111257,3527.5,3526.5,3.2078]
[1735915742532,3.31331257,3527.5,3527.1,3.2078]
[1735915742927,3.31331257,3527.5,3526.6,3.2078]
[1735915743342,3.2078,3527.6,3526.6,3.2078]
[1735915743830,0.28371,3527.3,3526.6,3.2078]
[1735915744028,0.28372,3527.2,3526.7,0.28376]
[1735915744427,40.8,3528.0,3526.6,3.2078]
[1735915744641,40.8,3528.0,3527.0,3.2078]
[1735915744836,0.2837,3527.5,3527.0,3.49153]
[1735915745134,40.8,3528.0,3527.3,0.2837]
[1735915745335,0.28369,3527.6,3527.2,0.28371]
[1735915745538,0.2837,3527.5,3527.1,0.28372]
[1735915745737,0.2837,3527.4,3527.0,3.49153]
[1735915745938,3.2078,3527.9,3527.0,3.2078]
[1735915746134,3.2078,3527.5,3526.4,3.2078]
[1735915746336,0.70936,3527.0,3525.9,3.2078]
[1735915746534,3.2078,3526.7,3525.9,3.49162]
[1735915746836,0.28379,3526.4,3526.0,0.28381]
[1735915747042,3.2078,3526.7,3525.9,3.2078]
[1735915747043,0.70933,3527.1,3526.2,0.28379]
[1735915747238,3.2078,3527.0,3526.2,0.28379]
[1735915747439,0.28378,3526.5,3526.1,0.2838]
[1735915747938,2.79643922,3527.2,3526.4,3.2078]
[1735915748137,2.79643922,3527.2,3520.8,1.43907183]
[1735915748138,3.2078,3527.9,3526.8,3.2078]
[1735915748437,0.28368,3527.7,3527.3,0.28371]
[1735915748643,0.28366,3527.9,3527.3,0.28371]
[1735915748844,3.2078,3527.7,3526.4,3.2078]
[1735915749141,1.286,3527.8,3526.0,3.2078]
[1735915749142,3.2078,3526.8,3526.0,3.2078]
[1735915749341,0.28378,3526.5,3526.1,0.2838]
[1735915749538,0.28376,3526.7,3526.3,0.28379]
[1735915749742,0.28377,3526.6,3526.2,0.28379]
[1735915750046,0.28376,3526.7,3526.3,0.28379]
[1735915750236,3.2078,3526.8,3526.3,0.28379]
[1735915750437,3.2078,3526.8,3526.0,3.2078]
[1735915750635,40.8,3527.2,3526.5,3.2078]
[1735915750940,40.8,3527.2,3525.5,4.21570922]
[1735915750941,3.2078,3527.4,3526.6,3.2078]
[1735915751241,3.2078,3527.4,3526.5,3.2078]
[1735915751444,1.286,3527.6,3526.5,3.2078]
[1735915751646,0.28371,3527.3,3526.9,0.28374]
[1735915752341,0.28372,3527.2,3526.8,0.28375]
[1735915752640,0.28372,3527.2,3526.9,0.28374]
[1735915752945,0.28371,3527.4,3527.0,0.28373]
[1735915753137,0.2837,3527.4,3527.0,0.28373]
[1735915753337,3.2078,3527.8,3526.9,3.2078]
[1735915753539,0.28374,3527.0,3526.6,3.49156]
[1735915753747,7.77015597,3527.7,3526.2,3.2078]
[1735915753945,0.28372,3527.2,3526.8,0.28375]
[1735915754144,0.28372,3527.3,3526.9,0.28374]
[1735915754347,0.28374,3527.0,3526.6,3.49156]
[1735915754555,0.28375,3526.9,3526.5,0.28377]
[1735915754848,3.2078,3527.4,3526.5,3.2078]
[1735915755343,0.28373,3527.1,3526.5,3.2078]
[1735915755551,3.2078,3527.8,3526.5,3.2078]
[1735915755747,0.28373,3527.1,3526.7,0.28376]
[1735915756042,3.2078,3527.4,3526.7,0.28375]
[1735915756352,0.28377,3526.6,3526.1,3.2078]
[1735915756547,0.28378,3526.5,3526.2,0.28379]
[1735915756749,0.28377,3526.6,3526.3,0.28379]
[1735915756947,2.50447772,3527.0,3526.4,0.28378]
[1735915757146,2.50447772,3527.0,3526.5,0.28377]
[1735915757341,2.50447772,3527.0,3526.1,3.2078]
[1735915757647,0.28374,3527.0,3526.8,0.28375]
[1735915757853,1.285,3527.2,3526.6,3.2078]
[1735915758150,2.50447772,3527.8,3527.2,0.28371]
[1735915758338,2.50447772,3527.8,3527.0,0.28373]
[1735915758339,0.28371,3527.3,3527.0,0.28373]
[1735915758543,0.28369,3527.6,3527.3,0.28371]
[1735915758747,3.2078,3527.9,3527.0,5.71227772]
[1735915759055,3.2078,3527.9,3527.7,0.28368]
[1735915759347,3.49147,3527.9,3527.5,0.28369]
[1735915759656,3.2078,3527.9,3527.0,5.71227772]
[1735915759845,3.2078,3527.9,3527.4,0.28369]
[1735915760148,3.2078,3527.9,3527.0,5.71227772]
[1735915760149,0.28371,3527.4,3527.0,3.2078]
[1735915760353,2.50447772,3527.8,3527.0,3.2078]
[1735915760548,0.28372,3527.3,3527.0,3.49153]
[1735915760942,3.21367772,3527.8,3527.0,3.2078]
[1735915761144,3.21367772,3527.8,3527.2,0.28372]
[1735915761145,0.28371,3527.4,3527.2,0.28372]
[1735915761347,0.28371,3527.3,3527.1,0.28372]
[1735915761545,3.2078,3527.9,3527.0,3.2078]
[1735915761748,3.2078,3527.9,3527.1,0.28372]
[1735915761749,0.28372,3527.3,3527.1,0.28372]
[1735915762053,0.70918,3527.8,3527.0,3.2078]
[1735915762244,0.28372,3527.2,3527.0,3.49153]
[1735915762446,0.70918,3527.8,3527.0,3.2078]
[1735915762740,3.2078,3527.9,3527.2,0.28371]
[1735915762950,0.2837,3527.5,3527.3,0.28371]
[1735915763452,0.28373,3527.1,3527.0,3.2078]
[1735915763649,0.70918,3527.8,3527.0,3.2078]
[1735915764041,0.28373,3527.1,3527.0,3.2078]
[1735915764244,0.28376,3526.7,3526.5,0.28377]
[1735915764443,3.2078,3526.9,3526.0,3.2078]
[1735915764653,0.7094,3526.7,3526.1,0.28381]
[1735915764954,0.28379,3526.4,3526.2,0.2838]
[1735915765257,0.28379,3526.4,3526.2,0.28379]
[1735915765549,0.28379,3526.4,3526.2,0.2838]
[1735915765746,3.78947772,3527.0,3526.0,3.2078]
[1735915766053,1.285,3527.0,3526.5,0.28377]
[1735915766349,0.28377,3526.5,3526.4,3.2078]
[1735915767652,0.70943,3526.6,3525.9,3.2078]
[1735915767849,0.70945,3526.5,3525.9,3.49162]
[1735915768049,0.28382,3526.0,3525.9,3.2078]
[1735915768553,0.70949,3526.3,3525.5,3.49165]
[1735915768742,0.28389,3525.2,3525.1,3.2078]
[1735915768945,0.28389,3525.1,3524.8,0.28391]
[1735915769154,0.28391,3524.8,3524.7,3.2078]
[1735915769352,3.2078,3524.8,3524.5,6.47637458]
[1735915769547,3.2078,3524.8,3524.1,10.46867484]
[1735915769548,0.28396,3524.2,3524.1,4.31758305]
[1735915769744,4.07343772,3524.2,3524.1,1.1434054]
[1735915769946,7.28123772,3524.2,3524.1,1.1434054]
[1735915770245,0.28384,3525.7,3525.1,0.28388]
[1735915770450,3.2078,3525.8,3524.7,3.2078]
[1735915770653,0.28386,3525.5,3524.9,0.2839]
[1735915770850,6.00456952,3525.8,3524.7,3.2078]
[1735915771154,0.28386,3525.5,3525.0,0.28389]
[1735915771350,2.79676952,3525.8,3524.5,3.2078]
[1735915771547,2.79676952,3525.8,3525.0,0.28389]
[1735915771548,0.28386,3525.5,3525.0,0.28389]
[1735915771750,3.2078,3525.7,3524.5,3.2078]
[1735915771751,2.79676952,3525.8,3524.5,3.2078]
[1735915771956,0.28389,3525.1,3524.6,0.28393]
[1735915772250,3.2078,3525.2,3524.5,3.2078]
[1735915772460,0.28391,3524.9,3524.5,3.2078]
[1735915772755,1.338,3525.6,3524.3,3.2078]
[1735915772756,2.79676952,3525.3,3524.3,3.2078]
[1735915772955,1.338,3525.6,3524.3,3.2078]
[1735915773150,3.2078,3525.9,3524.8,3.2078]
[1735915773459,4.5458,3526.7,3525.8,0.28383]
[1735915773643,4.5458,3526.7,3525.6,3.2078]
[1735915773846,3.2078,3526.7,3525.6,3.2078]
[1735915774050,0.2838,3526.3,3525.8,0.28382]
[1735915774254,3.2078,3526.7,3525.6,3.2078]
[1735915774551,3.2078,3526.3,3525.6,3.2078]
[1735915774861,0.28381,3526.1,3525.6,3.49164]
[1735915775055,3.2078,3526.7,3525.8,0.28383]
[1735915775256,0.28379,3526.4,3525.9,0.28382]
[1735915775555,3.2078,3526.7,3525.6,3.2078]
[1735915775758,3.2078,3526.7,3526.0,3.2078]
[1735915775952,3.49156,3526.7,3526.2,0.28379]
[1735915776147,3.2078,3526.7,3526.5,0.28377]
[1735915776354,3.31331257,3527.7,3526.4,3.2078]
[1735915776561,0.28372,3527.3,3526.7,0.28375]
[1735915776753,6.52111257,3527.7,3526.3,3.2078]
[1735915776947,3.2078,3527.2,3526.7,3.2078]
[1735915777149,3.31331257,3527.7,3527.1,3.2078]